{"text_format":"1","workbook":"xlsx","n_sheets":11,"sheets":["فاتورة 1","فاتورة 2 ","فاتورة 3","ورقة1","فاتورة رقم 1","فاتورة رقم 2","فاتورة رقم 3","حسن البدوي","يحي البدوي","مصطفي البدوي","يةسف البدوي"],"not_rendered":{"charts":0,"images":0,"macros":1,"external_links":0,"defined_names":4,"comments":0,"pivot_tables":0},"unopened":[],"bounds":{"document_bytes":16777216,"sheet_cells":100000,"rows_first":2000,"rows_last":500,"rows_between":2000,"halvings":0,"cell_chars":16384,"cell_head_chars":4096},"cells_cut":0,"cells_raw":0,"read":"whole","date_system":"1900"}

{"sheet":"فاتورة 1","index":0,"n_rows":38,"n_cols":18,"rows_kept":38,"cut":false,"hidden":false,"merged":[[37,8,38,8],[37,9,38,9],[2,8,3,8],[2,9,3,9],[31,2,31,7],[31,8,32,8],[31,9,32,9],[32,2,38,7],[33,8,34,8],[33,9,34,9],[35,8,36,8],[35,9,36,9],[0,2,0,7],[1,2,1,3],[1,4,1,6],[1,8,1,9],[2,2,3,2],[2,3,2,4],[2,5,3,5],[2,6,3,6],[2,7,3,7]]}
[null,null,"فاتورة",null,null,null,null,null,"رقم الفاتوره",{"$f":"R1+1","v":153},null,null,null,null,null,null,null,152]
[null,null,"الاسم",null,null,null,null,"التاريخ",{"$f":"NOW()","v":"2020-10-14T11:13:19.200"}]
[null,null,"م","المقاس",null,"الصنف","العدد","سعر المتر","متر م","اجمالي"]
[null,null,null,"العرض ","الطول"]
[null,null,{"$f":"IF(D5=\"\",\"\",SUBTOTAL(3,$D$5:D5))","v":""},null,null,null,null,null,{"$f":"G5*E5*D5","v":0},{"$f":"H5*G5*(E5*D5)","v":0}]
[null,null,{"$f":"IF(D6=\"\",\"\",SUBTOTAL(3,$D$5:D6))","v":""},null,null,null,null,null,0,0]
[null,null,{"$f":"IF(D7=\"\",\"\",SUBTOTAL(3,$D$5:D7))","v":""},null,null,null,null,null,0,0]
[null,null,{"$f":"IF(D8=\"\",\"\",SUBTOTAL(3,$D$5:D8))","v":""},null,null,null,null,null,0,0]
[null,null,{"$f":"IF(D9=\"\",\"\",SUBTOTAL(3,$D$5:D9))","v":""},null,null,null,null,null,0,0]
[null,null,{"$f":"IF(D10=\"\",\"\",SUBTOTAL(3,$D$5:D10))","v":""},null,null,null,null,null,0,0]
[null,null,{"$f":"IF(D11=\"\",\"\",SUBTOTAL(3,$D$5:D11))","v":""},null,null,null,null,null,0,0]
[null,null,{"$f":"IF(D12=\"\",\"\",SUBTOTAL(3,$D$5:D12))","v":""},null,null,null,null,null,0,0]
[null,null,{"$f":"IF(D13=\"\",\"\",SUBTOTAL(3,$D$5:D13))","v":""},null,null,null,null,null,0,0]
[null,null,{"$f":"IF(D14=\"\",\"\",SUBTOTAL(3,$D$5:D14))","v":""},null,null,null,null,null,0,0]
[null,null,{"$f":"IF(D15=\"\",\"\",SUBTOTAL(3,$D$5:D15))","v":""},null,null,null,null,null,0,0]
[null,null,{"$f":"IF(D16=\"\",\"\",SUBTOTAL(3,$D$5:D16))","v":""},null,null,null,null,null,0,0]
[null,null,{"$f":"IF(D17=\"\",\"\",SUBTOTAL(3,$D$5:D17))","v":""},null,null,null,null,null,0,0]
[null,null,{"$f":"IF(D18=\"\",\"\",SUBTOTAL(3,$D$5:D18))","v":""},null,null,null,null,null,0,0]
[null,null,{"$f":"IF(D19=\"\",\"\",SUBTOTAL(3,$D$5:D19))","v":""},null,null,null,null,null,0,0]
[null,null,{"$f":"IF(D20=\"\",\"\",SUBTOTAL(3,$D$5:D20))","v":""},null,null,null,null,null,0,0]
[null,null,{"$f":"IF(D21=\"\",\"\",SUBTOTAL(3,$D$5:D21))","v":""},null,null,null,null,null,0,0]
[null,null,{"$f":"IF(D22=\"\",\"\",SUBTOTAL(3,$D$5:D22))","v":""},null,null,null,null,null,0,0]
[null,null,{"$f":"IF(D23=\"\",\"\",SUBTOTAL(3,$D$5:D23))","v":""},null,null,null,null,null,0,0]
[null,null,{"$f":"IF(D24=\"\",\"\",SUBTOTAL(3,$D$5:D24))","v":""},null,null,null,null,null,0,0]
[null,null,{"$f":"IF(D25=\"\",\"\",SUBTOTAL(3,$D$5:D25))","v":""},null,null,null,null,null,0,0]
[null,null,{"$f":"IF(D26=\"\",\"\",SUBTOTAL(3,$D$5:D26))","v":""},null,null,null,null,null,0,0]
[null,null,{"$f":"IF(D27=\"\",\"\",SUBTOTAL(3,$D$5:D27))","v":""},null,null,null,null,null,0,0]
[null,null,{"$f":"IF(D28=\"\",\"\",SUBTOTAL(3,$D$5:D28))","v":""},null,null,null,null,null,0,0]
[null,null,{"$f":"IF(D29=\"\",\"\",SUBTOTAL(3,$D$5:D29))","v":""},null,null,null,null,null,0,0]
[null,null,{"$f":"IF(D30=\"\",\"\",SUBTOTAL(3,$D$5:D30))","v":""},null,null,null,null,null,0,0]
[]
[null,null,"ملحوظة",null,null,null,null,null,"اجمالي الفتوره",{"$f":"SUM(J5:J30)","v":0}]
[]
[null,null,null,null,null,null,null,null,"قديم"]
[]
[null,null,null,null,null,null,null,null,"تنزيل"]
[]
[null,null,null,null,null,null,null,null,"صافي الفتوره",{"$f":"J32+J34-J36","v":0}]

{"sheet":"فاتورة 2 ","index":1,"n_rows":41,"n_cols":10,"rows_kept":41,"cut":false,"hidden":false,"merged":[[32,2,32,7],[32,8,33,8],[32,9,33,9],[33,2,41,7],[34,8,35,8],[34,9,35,9],[36,8,37,8],[36,9,37,9],[38,8,39,8],[38,9,39,9],[40,8,41,8],[40,9,41,9],[0,2,0,7],[1,2,1,3],[1,4,1,6],[1,8,1,9],[2,2,3,2],[2,3,2,4],[2,5,3,5],[2,6,3,6],[2,7,3,7],[2,8,3,8],[2,9,3,9]]}
[null,null,"فاتوره رقم 2",null,null,null,null,null,"رقم الفتوره",{"$f":"'فاتورة 1'!J1","v":153}]
[null,null,"الاسم",null,0,null,null,"التاريخ",{"$f":"NOW()","v":"2020-10-14T11:13:19.200"}]
[null,null,"م","المقاس",null,"الصنف","العدد","سعر المتر","متر م","اجمالي"]
[null,null,null,"العرض ","الطول"]
[null,null,{"$f":"IF(D5=\"\",\"\",SUBTOTAL(3,$D$5:D5))","v":""},null,null,null,null,null,{"$f":"G5*E5*D5","v":0},{"$f":"H5*G5*(E5*D5)","v":0}]
[null,null,{"$f":"IF(D6=\"\",\"\",SUBTOTAL(3,$D$5:D6))","v":""},null,null,null,null,null,0,0]
[null,null,{"$f":"IF(D7=\"\",\"\",SUBTOTAL(3,$D$5:D7))","v":""},null,null,null,null,null,0,0]
[null,null,{"$f":"IF(D8=\"\",\"\",SUBTOTAL(3,$D$5:D8))","v":""},null,null,null,null,null,0,0]
[null,null,{"$f":"IF(D9=\"\",\"\",SUBTOTAL(3,$D$5:D9))","v":""},null,null,null,null,null,0,0]
[null,null,{"$f":"IF(D10=\"\",\"\",SUBTOTAL(3,$D$5:D10))","v":""},null,null,null,null,null,0,0]
[null,null,{"$f":"IF(D11=\"\",\"\",SUBTOTAL(3,$D$5:D11))","v":""},null,null,null,null,null,0,0]
[null,null,{"$f":"IF(D12=\"\",\"\",SUBTOTAL(3,$D$5:D12))","v":""},null,null,null,null,null,0,0]
[null,null,{"$f":"IF(D13=\"\",\"\",SUBTOTAL(3,$D$5:D13))","v":""},null,null,null,null,null,0,0]
[null,null,{"$f":"IF(D14=\"\",\"\",SUBTOTAL(3,$D$5:D14))","v":""},null,null,null,null,null,0,0]
[null,null,{"$f":"IF(D15=\"\",\"\",SUBTOTAL(3,$D$5:D15))","v":""},null,null,null,null,null,0,0]
[null,null,{"$f":"IF(D16=\"\",\"\",SUBTOTAL(3,$D$5:D16))","v":""},null,null,null,null,null,0,0]
[null,null,{"$f":"IF(D17=\"\",\"\",SUBTOTAL(3,$D$5:D17))","v":""},null,null,null,null,null,0,0]
[null,null,{"$f":"IF(D18=\"\",\"\",SUBTOTAL(3,$D$5:D18))","v":""},null,null,null,null,null,0,0]
[null,null,{"$f":"IF(D19=\"\",\"\",SUBTOTAL(3,$D$5:D19))","v":""},null,null,null,null,null,0,0]
[null,null,{"$f":"IF(D20=\"\",\"\",SUBTOTAL(3,$D$5:D20))","v":""},null,null,null,null,null,0,0]
[null,null,{"$f":"IF(D21=\"\",\"\",SUBTOTAL(3,$D$5:D21))","v":""},null,null,null,null,null,0,0]
[null,null,{"$f":"IF(D22=\"\",\"\",SUBTOTAL(3,$D$5:D22))","v":""},null,null,null,null,null,0,0]
[null,null,{"$f":"IF(D23=\"\",\"\",SUBTOTAL(3,$D$5:D23))","v":""},null,null,null,null,null,0,0]
[null,null,{"$f":"IF(D24=\"\",\"\",SUBTOTAL(3,$D$5:D24))","v":""},null,null,null,null,null,0,0]
[null,null,{"$f":"IF(D25=\"\",\"\",SUBTOTAL(3,$D$5:D25))","v":""},null,null,null,null,null,0,0]
[null,null,{"$f":"IF(D26=\"\",\"\",SUBTOTAL(3,$D$5:D26))","v":""},null,null,null,null,null,0,0]
[null,null,{"$f":"IF(D27=\"\",\"\",SUBTOTAL(3,$D$5:D27))","v":""},null,null,null,null,null,0,0]
[null,null,{"$f":"IF(D28=\"\",\"\",SUBTOTAL(3,$D$5:D28))","v":""},null,null,null,null,null,0,0]
[null,null,{"$f":"IF(D29=\"\",\"\",SUBTOTAL(3,$D$5:D29))","v":""},null,null,null,null,null,0,0]
[null,null,{"$f":"IF(D30=\"\",\"\",SUBTOTAL(3,$D$5:D30))","v":""},null,null,null,null,null,0,0]
[null,null,{"$f":"IF(D31=\"\",\"\",SUBTOTAL(3,$D$5:D31))","v":""},null,null,null,null,null,0,0]
[]
[null,null,"ملحوظة",null,null,null,null,null,"اجمالي الفتوره",{"$f":"SUM(J5:J31)","v":0}]
[]
[null,null,null,null,null,null,null,null,"الفتوره الاولي",{"$f":"'فاتورة 1'!J32","v":0}]
[]
[null,null,null,null,null,null,null,null,"قديم"]
[]
[null,null,null,null,null,null,null,null,"تنزيل"]
[]
[null,null,null,null,null,null,null,null,"صافي الفتوره",{"$f":"J33+J35+J37-J39","v":0}]

{"sheet":"فاتورة 3","index":2,"n_rows":38,"n_cols":10,"rows_kept":38,"cut":false,"hidden":false,"merged":[[29,2,29,7],[29,8,30,8],[29,9,30,9],[30,2,38,7],[31,8,32,8],[31,9,32,9],[35,8,36,8],[35,9,36,9],[37,8,38,8],[37,9,38,9],[0,2,0,7],[1,2,1,3],[1,4,1,6],[1,8,1,9],[2,2,3,2],[2,3,2,4],[2,5,3,5],[2,6,3,6],[2,7,3,7],[2,8,3,8],[2,9,3,9]]}
[null,null,"فاتوره",null,null,null,null,null,"رقم الفتوره",{"$f":"'فاتورة 1'!J1","v":153}]
[null,null,"الاسم",null,null,null,null,"التاريخ",{"$f":"NOW()","v":"2020-10-14T11:13:19.200"}]
[null,null,"م","المقاس",null,"الصنف","العدد","سعر المتر","متر م","اجمالي"]
[null,null,null,"العرض ","الطول"]
[null,null,{"$f":"IF(D5=\"\",\"\",SUBTOTAL(3,$D$5:D5))","v":""},null,null,null,null,null,{"$f":"G5*E5*D5","v":0},{"$f":"H5*G5*(E5*D5)","v":0}]
[null,null,{"$f":"IF(D6=\"\",\"\",SUBTOTAL(3,$D$5:D6))","v":""},null,null,null,null,null,0,0]
[null,null,{"$f":"IF(D7=\"\",\"\",SUBTOTAL(3,$D$5:D7))","v":""},null,null,null,null,null,0,0]
[null,null,{"$f":"IF(D8=\"\",\"\",SUBTOTAL(3,$D$5:D8))","v":""},null,null,null,null,null,0,0]
[null,null,{"$f":"IF(D9=\"\",\"\",SUBTOTAL(3,$D$5:D9))","v":""},null,null,null,null,null,0,0]
[null,null,{"$f":"IF(D10=\"\",\"\",SUBTOTAL(3,$D$5:D10))","v":""},null,null,null,null,null,0,0]
[null,null,{"$f":"IF(D11=\"\",\"\",SUBTOTAL(3,$D$5:D11))","v":""},null,null,null,null,null,0,0]
[null,null,{"$f":"IF(D12=\"\",\"\",SUBTOTAL(3,$D$5:D12))","v":""},null,null,null,null,null,0,0]
[null,null,{"$f":"IF(D13=\"\",\"\",SUBTOTAL(3,$D$5:D13))","v":""},null,null,null,null,null,0,0]
[null,null,{"$f":"IF(D14=\"\",\"\",SUBTOTAL(3,$D$5:D14))","v":""},null,null,null,null,null,0,0]
[null,null,{"$f":"IF(D15=\"\",\"\",SUBTOTAL(3,$D$5:D15))","v":""},null,null,null,null,null,0,0]
[null,null,{"$f":"IF(D16=\"\",\"\",SUBTOTAL(3,$D$5:D16))","v":""},null,null,null,null,null,0,0]
[null,null,{"$f":"IF(D17=\"\",\"\",SUBTOTAL(3,$D$5:D17))","v":""},null,null,null,null,null,0,0]
[null,null,{"$f":"IF(D18=\"\",\"\",SUBTOTAL(3,$D$5:D18))","v":""},null,null,null,null,null,0,0]
[null,null,{"$f":"IF(D19=\"\",\"\",SUBTOTAL(3,$D$5:D19))","v":""},null,null,null,null,null,0,0]
[null,null,{"$f":"IF(D20=\"\",\"\",SUBTOTAL(3,$D$5:D20))","v":""},null,null,null,null,null,0,0]
[null,null,{"$f":"IF(D21=\"\",\"\",SUBTOTAL(3,$D$5:D21))","v":""},null,null,null,null,null,0,0]
[null,null,{"$f":"IF(D22=\"\",\"\",SUBTOTAL(3,$D$5:D22))","v":""},null,null,null,null,null,0,0]
[null,null,{"$f":"IF(D23=\"\",\"\",SUBTOTAL(3,$D$5:D23))","v":""},null,null,null,null,null,0,0]
[null,null,{"$f":"IF(D24=\"\",\"\",SUBTOTAL(3,$D$5:D24))","v":""},null,null,null,null,null,0,0]
[null,null,{"$f":"IF(D25=\"\",\"\",SUBTOTAL(3,$D$5:D25))","v":""},null,null,null,null,null,0,0]
[null,null,{"$f":"IF(D26=\"\",\"\",SUBTOTAL(3,$D$5:D26))","v":""},null,null,null,null,null,0,0]
[null,null,{"$f":"IF(D27=\"\",\"\",SUBTOTAL(3,$D$5:D27))","v":""},null,null,null,null,null,0,0]
[null,null,{"$f":"IF(D28=\"\",\"\",SUBTOTAL(3,$D$5:D28))","v":""},null,null,null,null,null,0,0]
[]
[null,null,"ملحوظة",null,null,null,null,null,"اجمالي الفتوره",{"$f":"SUM(J5:J28)","v":0}]
[]
[null,null,null,null,null,null,null,null,"الفاتوره رقم 1",{"$f":"'فاتورة 1'!J32","v":0}]
[]
[null,null,null,null,null,null,null,null,"الفاتوره رقم 2",{"$f":"'فاتورة 2 '!J33","v":0}]
[null,null,null,null,null,null,null,null,"قديم"]
[null,null,null,null,null,null,null,null,"تنزيل"]
[]
[null,null,null,null,null,null,null,null,"صافي الفتوره",{"$f":"J30+J32+J34+J35-J36","v":0}]

{"sheet":"ورقة1","index":3,"n_rows":24,"n_cols":8,"rows_kept":24,"cut":false,"hidden":false,"merged":[[14,9,15,9],[14,10,15,10],[14,11,15,11],[9,7,10,8],[23,7,26,11],[19,7,21,11],[11,7,13,11],[16,7,17,7],[16,8,17,8],[16,9,17,9],[16,10,17,10],[16,11,17,11],[14,7,15,7],[14,8,15,8]]}
[]
[]
[]
[]
[]
[]
[]
[]
[]
[null,null,null,null,null,null,null,"من تاريخ"]
[]
[]
[]
[]
[]
[]
[]
[]
[null,null,null,null,null,null,null,"الي تاريخ"]
[]
[]
[]
[]
[null,null,null,null,null,null,null,"تم المرجعة"]

{"sheet":"فاتورة رقم 1","index":4,"n_rows":38,"n_cols":8,"rows_kept":38,"cut":false,"hidden":false,"merged":[]}
["فاتورة",null,null,null,null,null,"رقم الفاتوره",153]
["الاسم",null,null,null,null,"التاريخ",44116.769670138892]
["م","المقاس",null,"الصنف","العدد","سعر المتر","متر م","اجمالي"]
[null,"العرض ","الطول"]
["",null,null,null,null,null,0,0]
["",null,null,null,null,null,0,0]
["",null,null,null,null,null,0,0]
["",null,null,null,null,null,0,0]
["",null,null,null,null,null,0,0]
["",null,null,null,null,null,0,0]
["",null,null,null,null,null,0,0]
["",null,null,null,null,null,0,0]
["",null,null,null,null,null,0,0]
["",null,null,null,null,null,0,0]
["",null,null,null,null,null,0,0]
["",null,null,null,null,null,0,0]
["",null,null,null,null,null,0,0]
["",null,null,null,null,null,0,0]
["",null,null,null,null,null,0,0]
["",null,null,null,null,null,0,0]
["",null,null,null,null,null,0,0]
["",null,null,null,null,null,0,0]
["",null,null,null,null,null,0,0]
["",null,null,null,null,null,0,0]
["",null,null,null,null,null,0,0]
["",null,null,null,null,null,0,0]
["",null,null,null,null,null,0,0]
["",null,null,null,null,null,0,0]
["",null,null,null,null,null,0,0]
["",null,null,null,null,null,0,0]
[]
["ملحوظة",null,null,null,null,null,"اجمالي الفتوره",0]
[]
[null,null,null,null,null,null,"قديم"]
[]
[null,null,null,null,null,null,"تنزيل"]
[]
[null,null,null,null,null,null,"صافي الفتوره",0]

{"sheet":"فاتورة رقم 2","index":5,"n_rows":41,"n_cols":10,"rows_kept":41,"cut":false,"hidden":false,"merged":[]}
[null,null,"فاتوره رقم 2",null,null,null,null,null,"رقم الفتوره",153]
[null,null,"الاسم",null,0,null,null,"التاريخ",44116.769895486112]
[null,null,"م","المقاس",null,"الصنف","العدد","سعر المتر","متر م","اجمالي"]
[null,null,null,"العرض ","الطول"]
[null,null,"",null,null,null,null,null,0,0]
[null,null,"",null,null,null,null,null,0,0]
[null,null,"",null,null,null,null,null,0,0]
[null,null,"",null,null,null,null,null,0,0]
[null,null,"",null,null,null,null,null,0,0]
[null,null,"",null,null,null,null,null,0,0]
[null,null,"",null,null,null,null,null,0,0]
[null,null,"",null,null,null,null,null,0,0]
[null,null,"",null,null,null,null,null,0,0]
[null,null,"",null,null,null,null,null,0,0]
[null,null,"",null,null,null,null,null,0,0]
[null,null,"",null,null,null,null,null,0,0]
[null,null,"",null,null,null,null,null,0,0]
[null,null,"",null,null,null,null,null,0,0]
[null,null,"",null,null,null,null,null,0,0]
[null,null,"",null,null,null,null,null,0,0]
[null,null,"",null,null,null,null,null,0,0]
[null,null,"",null,null,null,null,null,0,0]
[null,null,"",null,null,null,null,null,0,0]
[null,null,"",null,null,null,null,null,0,0]
[null,null,"",null,null,null,null,null,0,0]
[null,null,"",null,null,null,null,null,0,0]
[null,null,"",null,null,null,null,null,0,0]
[null,null,"",null,null,null,null,null,0,0]
[null,null,"",null,null,null,null,null,0,0]
[null,null,"",null,null,null,null,null,0,0]
[null,null,"",null,null,null,null,null,0,0]
[]
[null,null,"ملحوظة",null,null,null,null,null,"اجمالي الفتوره",0]
[]
[null,null,null,null,null,null,null,null,"الفتوره الاولي",0]
[]
[null,null,null,null,null,null,null,null,"قديم"]
[]
[null,null,null,null,null,null,null,null,"تنزيل"]
[]
[null,null,null,null,null,null,null,null,"صافي الفتوره",0]

{"sheet":"فاتورة رقم 3","index":6,"n_rows":38,"n_cols":10,"rows_kept":38,"cut":false,"hidden":false,"merged":[]}
[null,null,"فاتوره",null,null,null,null,null,"رقم الفتوره",153]
[null,null,"الاسم",null,null,null,null,"التاريخ",44116.769964120373]
[null,null,"م","المقاس",null,"الصنف","العدد","سعر المتر","متر م","اجمالي"]
[null,null,null,"العرض ","الطول"]
[null,null,"",null,null,null,null,null,0,0]
[null,null,"",null,null,null,null,null,0,0]
[null,null,"",null,null,null,null,null,0,0]
[null,null,"",null,null,null,null,null,0,0]
[null,null,"",null,null,null,null,null,0,0]
[null,null,"",null,null,null,null,null,0,0]
[null,null,"",null,null,null,null,null,0,0]
[null,null,"",null,null,null,null,null,0,0]
[null,null,"",null,null,null,null,null,0,0]
[null,null,"",null,null,null,null,null,0,0]
[null,null,"",null,null,null,null,null,0,0]
[null,null,"",null,null,null,null,null,0,0]
[null,null,"",null,null,null,null,null,0,0]
[null,null,"",null,null,null,null,null,0,0]
[null,null,"",null,null,null,null,null,0,0]
[null,null,"",null,null,null,null,null,0,0]
[null,null,"",null,null,null,null,null,0,0]
[null,null,"",null,null,null,null,null,0,0]
[null,null,"",null,null,null,null,null,0,0]
[null,null,"",null,null,null,null,null,0,0]
[null,null,"",null,null,null,null,null,0,0]
[null,null,"",null,null,null,null,null,0,0]
[null,null,"",null,null,null,null,null,0,0]
[null,null,"",null,null,null,null,null,0,0]
[]
[null,null,"ملحوظة",null,null,null,null,null,"اجمالي الفتوره",0]
[]
[null,null,null,null,null,null,null,null,"الفاتوره رقم 1",0]
[]
[null,null,null,null,null,null,null,null,"الفاتوره رقم 2",0]
[null,null,null,null,null,null,null,null,"قديم"]
[null,null,null,null,null,null,null,null,"تنزيل"]
[]
[null,null,null,null,null,null,null,null,"صافي الفتوره",0]

{"sheet":"حسن البدوي","index":7,"n_rows":8,"n_cols":2,"rows_kept":8,"cut":false,"hidden":false,"merged":[]}
["الصنف","السعر"]
["بدر",10]
["كهرمان",10]
["بانوراما",10]
["فلوريدا",10]
["بروكسل",10]
["استايل ",10]
["بريشكا",10]

{"sheet":"يحي البدوي","index":8,"n_rows":8,"n_cols":2,"rows_kept":8,"cut":false,"hidden":false,"merged":[]}
["الصنف","السعر"]
["بدر",90]
["كهرمان",90]
["بانوراما",90]
["فلوريدا",90]
["بروكسل",90]
["استايل ",90]
["بريشكا",90]

{"sheet":"مصطفي البدوي","index":9,"n_rows":8,"n_cols":2,"rows_kept":8,"cut":false,"hidden":false,"merged":[]}
["الصنف","السعر"]
["بدر",80]
["كهرمان",80]
["بانوراما",80]
["فلوريدا",80]
["بروكسل",80]
["استايل ",80]
["بريشكا",80]

{"sheet":"يةسف البدوي","index":10,"n_rows":8,"n_cols":2,"rows_kept":8,"cut":false,"hidden":false,"merged":[]}
["الصنف","السعر"]
["بدر",70]
["كهرمان",70]
["بانوراما",70]
["فلوريدا",70]
["بروكسل",70]
["استايل ",70]
["بريشكا",70]